Cogmind - Beta 13 @@@ ROGUE MODE // 2024.07.06 @ 06:40:23 Player: asta Result: Destroyed by D-53 Grenadier with Mini Grenade Launcher Performance ------------- Evolutions (1) 500 Regions Visited (3) 600 Robots Destroyed (55) 275 Value Destroyed (1233) 1233 Prototype IDs (5) 100 Alien Tech Used (0) 0 Bonus (42) 42 TOTAL SCORE: 2750 Bonus ------- High Alert Combat Kills 42 Cogmind --------- Core Integrity 0/400 Matter 58/300 Energy 280/280 System Corruption 0% Temperature Cool (0) Movement Core (150) Ox2 Location -9/Mines Parts ------- > --- POWER (1) -------- Heavy Ion Engine > --- PROPULSION (3) --- (None) > --- UTILITY (3) ------ Structural Scanner Visual Processing Unit Improved Targeting Computer > --- WEAPON (2) ------- (None) > --- INVENTORY (5) ---- Improved Ion Engine Core Shielding Peak State ------------ > --- POWER ------------ Cooled Ion Engine > --- PROPULSION ------- Aluminum Leg Aluminum Leg Aluminum Leg > --- UTILITY ---------- Structural Scanner Weapon Shielding Hardened Light Armor Plating > --- WEAPON ----------- Improved Assault Rifle Grenade Launcher > --- INVENTORY -------- Ion Engine Heavy Ion Engine Visual Processing Unit Light Cannon [Rating: 14] Favorites ----------- Power Cooled Ion Engine Engine Cooled Ion Engine Propulsion Aluminum Leg Leg Aluminum Leg Utility Structural Scanner Device Structural Scanner Storage Medium Battery Processor Visual Processing Unit Protection Weapon Shielding Weapon Grenade Launcher Energy Gun Medium Laser Ballistic Gun Light Assault Rifle Ballistic Cannon Light Cannon Launcher Grenade Launcher Special Weapon Mining Laser Build | -11 -10 -9 -9 ------- Run | Yrd Mat Mat Min Slots Evolved 2 | . . 2 . Power . | . . . . Propulsion 1 | . . 1 . Utility 1 | . . 1 . Weapon . | . . . . Parts Attached 48 | 6 26 10 6 Power 8 | 1 5 1 1 Engine 8 | 1 5 1 1 Core . | . . . . Reactor . | . . . . Propulsion 16 | 2 8 5 1 Treads . | . . . . Leg 16 | 2 8 5 1 Wheel . | . . . . Hover . | . . . . Flight . | . . . . Utility 10 | 1 6 2 1 Device 2 | . 2 . . Storage 2 | 1 1 . . Processor 4 | . 2 1 1 Hackware . | . . . . Protection 2 | . 1 1 . Artifact . | . . . . Weapon 14 | 2 7 2 3 Energy Gun 3 | 1 2 . . Energy Cannon . | . . . . Ballistic Gun 5 | 1 2 1 1 Ballistic Cannon 1 | . 1 . . Launcher 4 | . 2 1 1 Special Weapon 1 | . . . 1 Impact Weapon . | . . . . Slashing Weapon . | . . . . Piercing Weapon . | . . . . Special Melee Weapon . | . . . . Unidentified Prototypes 2 | . 1 . 1 Parts Lost 16 | . 3 9 4 Power 2 | . . 2 . Propulsion 6 | . 2 3 1 Utility 2 | . . 2 . Weapon 6 | . 1 2 3 Highest Loss Streak 9 | . 2 9 3 To Critical Strikes . | . . . . Average Slot Usage (%) 90 | . 93 96 68 Engine 11 | . 12 10 10 Leg 26 | . 26 31 11 Device 7 | . 3 11 11 Storage 5 | . 10 . . Processor 7 | . 8 . 21 Protection 9 | . 3 20 . Energy Gun 6 | . 11 . . Ballistic Gun 7 | . 9 4 10 Ballistic Cannon 2 | . . 6 . Launcher 6 | . 5 9 3 Naked Turns . | . . . . Heaviest Build 21 | 7 16 21 16 Greatest Support 30 | 20 20 30 10 Greatest Overweight (x) 4 | . 4 . 1 Average Overweight (x) . | . . . . Largest Inventory Capacity 8 | 8 5 5 5 Average Capacity 5 | 5 5 5 5 Most Carried 5 | 1 5 5 2 Average Carried 3 | . 3 3 1 Final Capacity 5 | 5 5 5 5 Final Carried 4 | . 4 3 2 Class Distribution -------------------- 87% | Mutant 12% | Scavenger-Mutant Dominant Class ---------------- Mutant | -10/Materials Mutant | -9/Materials Mutant | -9/Mines Resources | -11 -10 -9 -9 ----------- Run | Yrd Mat Mat Min Matter Collected 990 | 248 345 341 56 Remotely . | . . . . Salvage Created 1340 | . 572 759 9 Parts 104 | . 47 57 . Haulers Intercepted 3 | . 1 2 . Recyclers Shooed 2 | . 1 1 . Parts Field Recycled . | . . . . Retrieved Matter . | . . . . Parts Self-Destructed . | . . . . Prevented . | . . . . Kills | -11 -10 -9 -9 ------- Run | Yrd Mat Mat Min Combat Hostiles Destroyed 36 | . 13 23 . Guns 16 | . 11 5 . Cannons 3 | . . 3 . AOE 17 | . 2 15 . Classes Destroyed 10 | . 9 1 . Worker 3 | . 1 1 1 Builder 3 | . 2 1 . Hauler 3 | . 1 2 . Recycler 2 | . 1 1 . Mechanic 1 | . 1 . . Operator 1 | . 1 . . Watcher 6 | . 3 3 . Swarmer 11 | . 5 6 . Grunt 19 | . 8 11 . Sentry 6 | . . 6 . Best Kill Streak 6 | . 5 6 1 Combat Bots Only 4 | . 3 4 . Max Kills in Single Turn 3 | . 3 3 1 Gunslinging . | . . . . Exploded 3 | . 1 3 . Melee . | . . . . Uniques/NPCs Destroyed . | . . . . Combat | -11 -10 -9 -9 -------- Run | Yrd Mat Mat Min Hostile Shots Fired 260 | . 86 156 18 Missed 77 | . 24 50 3 Damage Taken 2403 | . 713 1147 543 Core 547 | . 145 198 204 Absorbed by Shields . | . . . . Redirected to Shielding 50 | . . 50 . Regen/Repaired (Parts) 145 | . 105 40 . Core Remaining (%) 71 | 100 42 . . Volleys Fired 132 | . 67 61 4 Largest 2 | . 2 2 2 Hottest 115 | . 115 65 56 Shots Fired 226 | . 128 90 8 Gun 164 | . 122 38 4 Cannon 23 | . . 23 . Launcher 39 | . 6 29 4 Special . | . . . . Kinetic 118 | . 53 61 4 Thermal 69 | . 69 . . Explosive 39 | . 6 29 4 Electromagnetic . | . . . . Robot Hit Streak 12 | . 12 9 2 Robot Miss Streak 5 | . 5 2 2 Penetration Max . | . . . . Secondary Targets 2 | . 2 . . Max Gunslinging Chain 1 | . 1 . . Shots Hit Robots 128 | . 69 56 3 Core Hits 91 | . 39 50 2 Critical Kills . | . . . . Critical Parts Destroyed . | . . . . Critical Strikes 4 | . 4 . . Burn 4 | . 4 . . Melee Attacks . | . . . . Impact . | . . . . Slashing . | . . . . Piercing . | . . . . Sneak Attacks . | . . . . Combat Hostiles . | . . . . Follow-up Attacks . | . . . . Damage Inflicted 3324 | . 1289 1906 129 Guns 1312 | . 931 352 29 Cannons 246 | . . 246 . Explosions 1752 | . 350 1302 100 Melee . | . . . . Ramming 14 | . 8 6 . Kinetic 927 | . 300 598 29 Thermal 631 | . 631 . . Explosive 1752 | . 350 1302 100 Electromagnetic . | . . . . Impact . | . . . . Slashing . | . . . . Piercing . | . . . . Highest Corruption 1 | . 1 . . Average Corruption 1 | . 1 . . Corruption Purged . | . . . . Corruption Blocked . | . . . . Effects 6 | . 6 . . Message Errors 1 | . 1 . . Heat Flow Errors 2 | . 2 . . Energy Discharges 1 | . 1 . . Data Loss (minor) 1 | . 1 . . Weapon Failures 1 | . 1 . . Overload Shots . | . . . . Overflow Damage 33 | . 10 12 11 Projectiles . | . . . . Explosions 33 | . 10 12 11 Melee . | . . . . Knockbacks 2 | . . 2 . Impact . | . . . . Kinetic 1 | . . 1 . Secondary 1 | . . 1 . Self-Inflicted Damage 134 | . 20 112 2 Shots 10 | . 1 8 1 Rammed 1 | . . . 1 Targets Rammed 8 | . 1 4 3 Kicked 7 | . 1 4 2 Crushed . | . . . . Highest Temperature 356 | . 356 42 . Average Temperature 94 | . 117 8 . Received Heat Transfer 531 | . 288 210 33 Effects 1 | . 1 . . Energy Bleed 1 | . 1 . . Siege Activations . | . . . . Robots Corrupted . | . . . . Combat Hostiles . | . . . . Parts Fried . | . . . . Impact Corruptions . | . . . . Robots Melted . | . . . . Combat Hostiles . | . . . . Parts Melted 3 | . 3 . . Heat Transferred 1887 | . 1887 . . Parts Sabotaged . | . . . . Parts Stolen . | . . . . Parts Stripped . | . . . . Power Chain Reactions . | . . . . Alert | -11 -10 -9 -9 ------- Run | Yrd Mat Mat Min Peak Influence 502 | . 170 502 228 Initial 180 | . . 1 180 Average 172 | . 80 309 186 Maximum Alert Level 2 | . . 2 1 Low Security (%) 72 | 100 100 24 94 Level 1 15 | . . 41 5 Level 2 11 | . . 34 . Level 3 . | . . . . Level 4 . | . . . . Level 5 . | . . . . High Security . | . . . . Max Security . | . . . . Squads Dispatched 9 | . 2 6 1 Investigation 6 | . 2 4 . Extermination . | . . . . Reinforcement 3 | . . 2 1 Assault . | . . . . Garrison . | . . . . Intercept . | . . . . Searches Triggered . | . . . . Construction Impeded 2 | . . 1 1 Haulers Reinforced . | . . . . Active Scanning Responses . | . . . . Cargo Convoy Interrupts . | . . . . Stealth | -11 -10 -9 -9 --------- Run | Yrd Mat Mat Min Distress Signals 5 | . 2 2 1 Communications Jammed . | . . . . Distress Signals . | . . . . Times Spotted 65 | . 30 30 5 Peak Tracking Total 7 | . 4 7 3 Tactical Retreats 1 | . 1 . . Traps | -11 -10 -9 -9 ------- Run | Yrd Mat Mat Min Traps Triggered 4 | . 4 . . Indirectly . | . . . . Trap Hack Attempts . | . . . . Triggered . | . . . . Disarmed . | . . . . Reprogrammed . | . . . . Reused . | . . . . Traps Extracted . | . . . . Installed . | . . . . Triggered . | . . . . Machines | -11 -10 -9 -9 ---------- Run | Yrd Mat Mat Min Machines Disabled 2 | . . 1 1 Max in Single Turn 1 | . . 1 1 Machines Repaired . | . . . . Machines Dismantled . | . . . . Machines Sabotaged . | . . . . Overloaded Fab Kills . | . . . . Hacking | -11 -10 -9 -9 --------- Run | Yrd Mat Mat Min Machines Accessed 16 | . 10 6 . Terminals 10 | . 7 3 . Fabricators . | . . . . Repair Stations 2 | . 1 1 . Recycling Units 3 | . 2 1 . Scanalyzers 1 | . . 1 . Garrison Access . | . . . . Total Hacks 52 | . 31 21 . Successful 33 | . 18 15 . Failed 19 | . 13 6 . Catastrophic 2 | . 2 . . Database Lockouts . | . . . . Manual 1 | . . 1 . Terminals 30 | . 19 11 . Fabricators . | . . . . Repair Stations 6 | . 3 3 . Recycling Units 12 | . 9 3 . Scanalyzers 4 | . . 4 . Garrison Access . | . . . . Terminal Hacks 17 | . 12 5 . Record 3 | . 1 2 . Robot Analysis 1 | . . 1 . Prototype ID Bank 1 | . 1 . . Terminal Index 1 | . 1 . . Alert Level 2 | . 1 1 . Locate Traps 2 | . 2 . . Dispatch Records 3 | . 2 1 . Hauler Manifests 3 | . 3 . . Zone Layout 1 | . 1 . . Fabricator Hacks . | . . . . Repair Station Hacks 5 | . 2 3 . Scan Component 3 | . 1 2 . Repair 2 | . 1 1 . Recycling Unit Hacks 7 | . 4 3 . Process 2 | . 1 1 . Report Inventory 2 | . 1 1 . Retrieve Matter 2 | . 2 . . Retrieve Components 1 | . . 1 . Scanalyzer 4 | . . 4 . Insert Component 2 | . . 2 . Analyze 2 | . . 2 . Garrison Access Hacks . | . . . . Unauthorized Hacks . | . . . . Terminals . | . . . . Fabricators . | . . . . Repair Stations . | . . . . Recycling Units . | . . . . Scanalyzers . | . . . . Garrison Access . | . . . . Data Cores Recovered 1 | . 1 . . Used . | . . . . Hacking Detections 13 | . 7 6 . Full Trace Events 9 | . 4 5 . Feedback Events 1 | . 1 . . Corruption 1 | . 1 . . Feedback Blocked . | . . . . Robot Schematics Acquired . | . . . . Robots Built . | . . . . Authchips . | . . . . Time . | . . . . Total Robot Build Rating . | . . . . Part Schematics Acquired 2 | . . 2 . Parts Built . | . . . . Authchips . | . . . . Time . | . . . . Total Part Build Rating . | . . . . Parts Repaired 2 | . 1 1 . Time 77 | . 51 26 . Parts Recycled . | . . . . Recycled Matter 423 | . 165 258 . Retrieved Matter . | . . . . Retrieved Components 10 | . . 10 . Parts Scanalyzed 2 | . . 2 . Part Schematics Acquired 2 | . . 2 . Parts Damaged . | . . . . Bothacking | -11 -10 -9 -9 ------------ Run | Yrd Mat Mat Min Used RIF Installer . | . . . . Robots Hacked . | . . . . Non-combat . | . . . . Combat . | . . . . Robot Hacks Applied . | . . . . Relay Couplers Released . | . . . . Fabnet Peak Effective % . | . . . . Robots Rewired . | . . . . Allies Hacked . | . . . . Hacks Repelled . | . . . . Allies | -11 -10 -9 -9 -------- Run | Yrd Mat Mat Min Total Allies . | . . . . Largest Group . | . . . . Highest-Rated Group . | . . . . Highest-Rated Ally . | . . . . Total Orders . | . . . . Ally Attacks . | . . . . Total Damage . | . . . . Kills . | . . . . Allies Corrupted . | . . . . Allies Melted . | . . . . Intel | -11 -10 -9 -9 ------- Run | Yrd Mat Mat Min Robot Analysis Total 1 | . . 1 . Derelict Logs Recovered . | . . . . Drone Launches . | . . . . Drone Recoveries . | . . . . Exploration | -11 -10 -9 -9 ------------- Run | Yrd Mat Mat Min Turns Passed 2592 | 54 1309 904 325 Spaces Moved 1644 | 38 852 591 163 Core 40 | 1 3 36 . Treads . | . . . . Legs 1604 | 37 849 555 163 Wheels . | . . . . Hover . | . . . . Flight . | . . . . Fastest Speed 50 | 50 100 50 120 Average Speed 125 | 118 122 115 182 Slowest Speed 250 | 120 250 120 190 Overloaded Moves . | . . . . Propulsion Burnouts . | . . . . Robots Hopped . | . . . . Cave-ins Triggered . | . . . . Exploration Rate (%) 46 | 4 90 45 48 Regions Visited 3 Branch Regions 1 Pre-discovered Areas 1 | . . . 1 Known Exits Taken . | . . . . Unknown Exits Taken 3 | 1 1 1 . Scrap Searched . | . . . . Spaces Dug . | . . . . Terrain Destroyed 238 | . 40 168 30 Melee . | . . . . Projectile . | . . . . AOE 238 | . 40 168 30 Terrain Rammed 1 | . 1 . . Walls Destroyed . | . . . . Machines Disabled . | . . . . Actions | -11 -10 -9 -9 --------- Run | Yrd Mat Mat Min Total 1945 | 45 999 721 180 Wait 68 | . 25 41 2 Move 1641 | 37 851 590 163 Hop . | . . . . Pick Up 28 | 1 18 7 2 Fast Attach 19 | 5 10 1 3 Attach 18 | 1 10 4 3 Detach . | . . . . Swap 11 | . 6 5 . Drop 19 | 1 10 8 . Fire 132 | . 67 61 4 Melee . | . . . . Ram 2 | . 1 . 1 Kick 7 | . 1 4 2 Crush . | . . . . Escape Stasis . | . . . . Rewire . | . . . . Trap . | . . . . Miscellaneous . | . . . . Route ------- -11/Scrapyard -10/Materials (discovered 5 exits: *Mat x3 / [*Min x2]) -9/Materials (discovered 3 exits: [*Mat] / [*Min x2]) -9/Mines (discovered 1 exit: [*Mat]) History --------- Turn | Location | Event 6 | -11/Scrapyard | Discovered new exit (range 15) 55 | -11/Scrapyard | Entered Materials 240 | -10/Materials | Discovered new exit (range 14) 308 | -10/Materials | Build established: Mutant 567 | -10/Materials | Discovered new exit (range 10) 698 | -10/Materials | Core integrity fell below 50% 815 | -10/Materials | Discovered new exit (range 7) 903 | -10/Materials | Discovered new exit (range 17) 966 | -10/Materials | Repaired Cld. Ion Engine 997 | -10/Materials | Build established: Scavenger-Mutant 1344 | -10/Materials | Build established: Mutant 1358 | -10/Materials | Discovered new exit (range 6) 1364 | -10/Materials | Entered another Materials area 1364 | -9/Materials | Evolved 2 slots: Propulsion x1, Utility x1 1510 | -9/Materials | Repaired Grenade Launcher 1535 | -9/Materials | Discovered new exit (range 9) 1695 | -9/Materials | Discovered new exit (range 10) 2260 | -9/Materials | Discovered new exit (range 12) 2268 | -9/Materials | Entered Mines 2279 | -9/Mines | Lost 9 parts (2p3n2u2w) 2279 | -9/Mines | Joined a pair of Derelicts in attacking an 0b10 outpost 2366 | -9/Mines | Learned location of Storage (-7) 2469 | -9/Mines | Received a Rocket Launcher from a helpful Derelict 2544 | -9/Mines | Assembled infested the area 2576 | -9/Mines | Core integrity fell below 50% 2588 | -9/Mines | Core integrity fell below 20% 2591 | -9/Mines | Discovered new exit (range 14) 2593 | -9/Mines | Destroyed by D-53 Grenadier with Mini Grenade Launcher Last Messages --------------- U-05 Engineer builds a Wall. K-01 Serf cleans the Pressure Siphon. U-05 Engineer builds a Wall. Pressure Siphon disabled. Destroyed Welding Torch. ALERT: Construction progress impeded, dispatching reinforcements to local area. U-05 Engineer sends out distress signal. Destroyed Sml. Matter Pod. K-01 Serf destroyed. Rocket Launcher destroyed. Hvy. Assault Rifle destroyed. Kicked D-53 Grenadier out of the way. U-05 Engineer lays Concrete. U-05 Engineer builds a Wall. Kicked D-53 Grenadier. The unstable cave ceiling collapses. Aluminum Leg destroyed. Slammed into D-53 Grenadier. EXIT=FOUND Map ----- +----------------------------------------------------+ | ????????????????????????????????????? | | ????????????????????????????????????? | | ????????????????????????????????????? | | ????????????????????????????????????? | | ????????????????????????????????????? | | ????????????????????????????????????? | | ????????????????????????????????????? | | ????????????????????????????????????? | | ?????????####???????????????????????? | | ????????#####???????????????????????? | | ????????## ???????????????????????? | | ????????## ??????????????????????? | | ????????## ##??????????????????????? | | ????????##$ ##??????????????????????? | | ????????## ##??????????????????????? | | ??????#### ##??????????????????????? | | ??????#### ??????????????????????? | | ?????### ###?????????????????????? | | ?????### ####????????????????????? | | ?????## ###????????????????????? | | ????### ##????????????????????? | | ???##### ####??????????????????? | | ??#### ####??????????????????? | | ?#### ##??????????????????? | | ?### ## ????? ##???????? | | ?## @d #### ##???????? | | ?### # ##??????? | | ??### # # ??????? | | ??## gg ??????? | | ??### " # # ###??????? | | ??#### # ## r ###??????? | | ???##### ##### # ## ???????? | | ????#### ##########??% ????????? | | ??????## ########???<% ????????? | | ??????##### ##??????????? %?????????? | | ??????##### ##??????????????????????? | | ?????????## ##??????????????????????? | | ?????????## ########????????????????? | | ???????#### ########????????????????? | | ??????##### ## ##????????????????? | | ??????### ##????????????????? | | ??????## ###????????????????? | | ??????## ###????????????????? | | ??###### ##?????????????????? | | ?######## ##?????????????????? | | ?### #### ###????????????##### | | ?## #### ########??????###### | | ?## #### #######??????### | | ### #### ### ###???### | | ### ## ### ##???### | +----------------------------------------------------+ Best States ------------- Heat Dissipation 35 Energy Generation 14 Energy Capacity 430 Matter Stores 300 Matter Capacity 300 Sight Range 18 Terrain Scan Density 10 Armor Coverage 150 Weapon Shielding 33 Evasion (%) 55 Targeting Accuracy 6 Item Schematics ----------------- Hvy. Assault Rifle | -9/Materials | Scanalyzed Imp. Assault Rifle | -9/Materials | Scanalyzed Robot Schematics ------------------ None Fabricated ------------ Nothing Alien Tech Used ----------------- None Achievements -------------- None Challenges ------------ None Game ------ Seed EtherialCompactBiocell Manual? 0 Play Time 00:37:59 Cumulative 5.5 hours Start 2024.07.06 @ 06:00:34 End 2024.07.06 @ 06:40:23 Sessions 1 Manual Loads 0 Difficulty Rogue Special Mode None Game No. 8 Rogue 6 Adventurer 2 Explorer 0 Win Type - Total 0 Types 0/0/0/0/0/0/0/0/0 Lore% 8 Gallery% 12 Achievement% 13 Wizard Run 0 Options --------- Layout 1 ASCII 0 Keyboard 0 Movement Mouse Keybinds 0 Fullscreen 1 Font 32/SmallcapsGlow Map View 50x40 Zoom Use 0% Tactical HUD 0 Map Filters NONE Filters NONE Steam 1 RUN: 9270736a-3ba9-4d54-a8a5-27d79cf5c1a1